bitfinex/quotes_SOLUSD_20240829
["timestamp","ask_amount","ask_price","bid_price","bid_amount"]
[1724901268672,0.25098,144.17,144.13,6.938]
[1724901269270,0.25098,144.17,144.14,6.9375]
[1724901278266,7.18738,144.17,144.13,6.9381]
[1724901280067,0.25098,144.17,144.14,6.9376]
[1724901284885,0.25098,144.17,144.15,6.9368]
[1724901285062,45.25098,144.18,144.15,6.9368]
[1724901286085,45.25098,144.18,144.14,6.9375]
[1724901288080,52.18678,144.18,144.14,6.9375]
[1724901290587,54.98802819,144.18,144.14,6.9375]
[1724901297272,6.9363,144.17,144.13,6.9381]
[1724901297590,0.25098,144.16,144.13,6.9381]
[1724901298569,47.80124819,144.18,144.14,6.9374]
[1724901298770,0.25098,144.17,144.14,6.9374]
[1724901299283,20.0,144.19,144.12,28.85447417]
[1724901299483,0.12549,144.18,144.14,6.9375]
[1724901300283,0.12549,144.18,144.13,6.938]
[1724901300481,6.9365,144.17,144.13,6.938]
[1724901300673,0.12549,144.16,144.12,6.9384]
[1724901300881,0.25098,144.16,144.12,6.9384]
[1724901301795,6.9361,144.18,144.14,6.9376]
[1724901303467,6.9362,144.17,144.13,6.938]
[1724901303672,0.25098,144.16,144.13,6.938]
[1724901311682,52.18768,144.16,144.12,6.9385]
[1724901318910,52.18768,144.16,144.09,28.62067417]
[1724901318911,45.25098,144.16,144.13,6.938]
[1724901319217,0.25098,144.16,144.13,6.938]
[1724901324724,2.75414046,144.19,144.14,1.3875782]
[1724901324901,26.9349,144.2,144.15,6.9368]
[1724901325303,6.9353,144.19,144.14,6.9375]
[1724901325928,0.25098,144.18,144.14,6.9375]
[1724901326426,52.18678,144.18,144.14,6.9375]
[1724901327734,26.9351,144.2,144.15,6.937]
[1724901328029,0.25098,144.19,144.15,6.937]
[1724901328329,45.25098,144.19,144.15,6.937]
[1724901328825,52.18628,144.19,144.15,6.937]
[1724901331036,7.18628,144.19,144.15,6.937]
[1724901331437,0.12549,144.19,144.14,14.32115524]
[1724901331620,0.12549,144.2,144.15,1.33351411]
[1724901331807,0.25098,144.2,144.15,1.33351411]
[1724901332009,0.25098,144.2,144.16,6.9364]
[1724901332530,0.25098,144.2,144.15,1.33351411]
[1724901332712,6.9362,144.18,144.13,6.9378]
[1724901332920,0.25098,144.17,144.13,6.9378]
[1724901333504,0.25098,144.17,144.14,6.9374]
[1724901333824,0.25098,144.17,144.1,29.18027417]
[1724901333825,6.9348,144.2,144.15,8.24510491]
[1724901334027,0.25098,144.19,144.15,6.937]
[1724901337320,7.18628,144.19,144.14,6.9376]
[1724901341640,0.25098,144.19,144.16,6.9366]
[1724901341823,61.87352632,144.23,144.16,6.9366]
[1724901341824,74.86180049,144.23,144.16,6.9366]
[1724901342029,6.9346,144.21,144.16,6.9366]
[1724901342247,6.9382,144.13,144.09,6.9396]
[1724901343223,6.9382,144.13,144.08,28.207079]
[1724901344935,6.9382,144.13,144.09,6.9399]
[1724901346341,6.9376,144.15,144.1,6.9395]
[1724901348127,6.9376,144.15,144.11,6.939]
[1724901349325,30.66604984,144.18,144.11,6.939]
[1724901349530,6.9368,144.16,144.12,6.9384]
[1724901349730,6.9368,144.16,144.11,6.939]
[1724901350022,12.98827417,144.18,144.1,6.9395]
[1724901350331,20.0,144.17,144.1,6.9395]
[1724901350843,45.25098,144.16,144.1,6.9395]
[1724901351236,6.9377,144.14,144.1,6.9395]
[1724901351920,6.9377,144.14,144.09,6.9399]
[1724901357255,0.12549,144.13,144.08,28.207079]
[1724901357449,58.23925417,144.16,144.08,28.207079]
[1724901357450,19.44777417,144.14,144.08,28.207079]
[1724901357635,45.25098,144.13,144.08,28.207079]
[1724901358236,6.9386,144.12,144.08,28.207079]
[1724901358958,6.9401,144.09,144.08,21.266679]
[1724901363859,20.0,144.11,144.08,21.266679]
[1724901364061,19.44777417,144.14,144.08,21.266679]
[1724901364062,20.0,144.13,144.08,21.266679]
[1724901365253,6.9392,144.11,144.08,21.266679]
[1724901366558,6.9387,144.12,144.08,28.207079]
[1724901369734,6.9387,144.12,144.08,21.266679]
[1724901371358,29.3907714,144.16,144.08,21.266679]
[1724901371550,29.3907714,144.16,144.1,6.9395]
[1724901371551,6.938,144.14,144.1,6.9395]
[1724901371747,6.938,144.14,144.09,23.1496]
[1724901373654,6.9383,144.13,144.09,23.1496]
[1724901384766,6.9383,144.13,144.09,16.2097]
[1724901384962,6.9387,144.12,144.09,16.2097]
[1724901385152,6.9387,144.12,144.08,28.207079]
[1724901391980,6.9383,144.13,144.08,28.207079]
[1724901393389,6.9378,144.14,144.08,21.266679]
[1724901393572,6.9378,144.14,144.09,15.1773]
[1724901394162,6.9378,144.14,144.1,6.9395]
[1724901395660,6.9378,144.14,144.11,1.36942282]
[1724901398579,6.9378,144.14,144.09,22.1173]
[1724901398986,19.92607417,144.14,144.09,22.1173]
[1724901400464,7.06389,144.13,144.09,22.1173]
[1724901404374,19.92607417,144.14,144.09,22.1173]
[1724901404682,6.9378,144.14,144.09,22.1173]
[1724901406983,6.9378,144.14,144.1,6.9396]
[1724901410681,0.12549,144.15,144.09,15.1773]
[1724901410884,6.9382,144.13,144.08,28.206879]
[1724901411462,19.92707417,144.12,144.08,28.206879]
[1724901419191,19.92817417,144.1,144.08,21.266679]
[1724901419988,6.9401,144.09,144.08,21.266679]
[1724901420177,7.06559,144.09,144.08,21.266679]
[1724901420378,19.92797417,144.1,144.08,21.266679]
[1724901428783,6.9401,144.09,144.08,21.266679]
[1724901428978,7.06559,144.09,144.08,21.266679]
[1724901442707,52.06559,144.09,144.08,21.266679]
[1724901442899,72.19108,144.09,144.08,21.266679]
[1724901446604,6.1672,144.08,143.98,15.6629]
[1724901446912,12.98827417,144.03,143.98,15.6629]
[1724901447815,6.9439,144.02,143.98,15.6629]
[1724901448110,6.9439,144.02,143.98,22.6081]
[1724901449013,19.93137417,144.03,143.98,22.6081]
[1724901454695,6.9436,144.02,143.98,22.6081]
[1724901457905,13.11376417,144.04,143.91,12.98827417]
[1724901457906,12.98827417,144.0,143.91,12.98827417]
[1724901458108,6.9457,143.98,143.94,6.9471]
[1724901458313,6.9449,143.99,143.94,6.9471]
[1724901463214,6.9462,143.97,143.9,16.404]
[1724901463407,0.25098,143.96,143.9,16.404]
[1724901465203,0.25098,143.96,143.93,6.9477]
[1724901465405,12.98827417,143.98,143.93,6.9477]
[1724901465406,19.93377417,143.98,143.93,6.9477]
[1724901465626,6.9455,143.98,143.93,6.9477]
[1724901465828,0.25098,143.97,143.93,6.9477]
[1724901469233,7.19698,143.97,143.93,6.9477]
[1724901470512,0.25098,143.97,143.93,6.9477]
[1724901474615,7.19688,143.97,143.92,6.9481]
[1724901475242,7.19688,143.97,143.93,6.9477]
[1724901477040,19.93477417,143.96,143.9,16.404]
[1724901477224,45.25098,143.95,143.9,16.404]
[1724901477428,45.25098,143.95,143.91,6.9483]
[1724901477623,52.19788,143.95,143.91,6.9483]
[1724901477819,52.19788,143.95,143.9,6.9491]
[1724901478032,12.98827417,143.94,143.9,6.9491]
[1724901478545,19.93557417,143.94,143.9,6.9491]
[1724901479237,12.98827417,143.94,143.9,6.9491]
[1724901481540,12.98827417,143.94,143.89,6.9496]
[1724901481541,27.19888,143.93,143.89,6.9496]
[1724901482226,27.19888,143.93,143.88,6.9501]
[1724901486951,27.19888,143.93,143.89,6.9497]
[1724901490249,20.25098,143.93,143.89,6.9497]
[1724901492766,27.19878,143.93,143.89,6.9497]
[1724901493452,19.93687417,143.92,143.88,6.95]
[1724901493659,0.12549,143.91,143.88,6.95]
[1724901494351,0.25098,143.91,143.88,6.95]
[1724901494528,7.19978,143.91,143.87,6.9506]
[1724901494730,20.0,143.9,143.87,6.9506]
[1724901499154,26.9493,143.9,143.86,6.9508]
[1724901501943,0.12549,143.89,143.86,6.9508]
[1724901502262,0.25098,143.89,143.86,6.9508]
[1724901503934,20.0,143.9,143.87,6.9505]
[1724901504139,12.98827417,143.93,143.87,6.9505]
[1724901504354,26.9486,143.92,143.87,6.9505]
[1724901505555,0.12549,143.91,143.87,6.9505]
[1724901505867,0.25098,143.91,143.87,6.9505]
[1724901506040,0.25098,143.91,143.88,6.9502]
[1724901507157,7.19978,143.91,143.87,6.9505]
[1724901507361,20.0,143.9,143.87,6.9505]
[1724901511272,22.4655,143.95,143.87,12.98827417]
[1724901511445,6.9476,143.94,143.9,6.9491]
[1724901512573,85.93715966,143.99,143.93,6.9473]
[1724901512574,25.55410187,143.99,143.93,6.9473]
[1724901512758,6.9457,143.98,143.93,6.9476]
[1724901512960,34.45587417,143.99,143.93,6.9476]
[1724901512961,6.946,143.97,143.93,6.9476]
[1724901513952,20.0,143.96,143.94,6.9472]
[1724901514272,20.12549,143.98,143.94,6.9472]
[1724901514462,45.12549,143.97,143.94,6.9472]
[1724901514657,20.0,143.96,143.94,6.9472]
[1724901515376,20.0,143.97,143.94,6.9472]
[1724901517071,20.12549,143.98,143.94,6.9472]
[1724901520969,20.12549,143.98,143.95,6.9467]
[1724901521174,20.0,143.99,143.95,6.9467]
[1724901522046,15.8484,144.03,143.93,15.2927]
[1724901522047,13.22824093,144.04,143.93,28.28097417]
[1724901522251,6.943,144.03,143.99,6.9446]
[1724901522670,19.93087417,144.04,143.99,6.9446]
[1724901523462,27.39091353,144.07,144.02,6.9433]
[1724901523779,19.93037417,144.05,143.97,12.98827417]
[1724901524070,19.93037417,144.05,144.0,6.9443]
[1724901524776,0.12549,144.04,144.0,6.9443]
[1724901525281,20.12549,144.04,144.0,6.9443]
[1724901527664,27.06819,144.04,143.97,12.98827417]
[1724901527872,20.12549,144.04,144.0,6.9443]
[1724901528082,20.0,144.04,144.01,6.9438]
[1724901528279,20.0,144.04,144.0,6.9444]
[1724901528884,6.9415,144.06,143.99,15.7117]
[1724901529062,20.0,144.05,143.99,28.69997417]
[1724901529261,20.0,144.05,144.0,1.38429756]
[1724901529479,20.0,144.05,144.02,6.9431]
[1724901529682,20.0,144.06,144.02,6.9431]
[1724901529906,26.9415,144.06,144.02,6.9431]
[1724901530882,0.12549,144.05,144.02,6.9431]
[1724901531483,0.12549,144.05,144.01,6.9438]
[1724901537082,20.0,144.06,144.02,6.9433]
[1724901537288,20.0,144.06,143.99,28.69997417]
[1724901538063,6.9407,144.08,144.04,6.9424]
[1724901538290,0.25098,144.07,144.04,6.9424]
[1724901538468,390.80969925,144.12,144.03,12.98827417]
[1724901538469,389.6,144.12,144.03,12.98827417]
[1724901538669,6.9396,144.1,144.06,6.9413]
[1724901539989,20.0,144.09,144.06,6.9413]
[1724901543065,20.0,144.09,144.04,15.0233]
[1724901543066,20.0,144.09,144.05,6.9419]
[1724901546391,26.9396,144.1,144.06,6.9414]
[1724901546689,45.0,144.09,144.04,15.0233]
[1724901547000,7.06639,144.08,144.04,15.0233]
[1724901547181,45.12549,144.07,144.04,15.0233]
[1724901547580,45.12549,144.07,144.02,6.9434]
[1724901547897,7.06729,144.06,144.02,6.9434]
[1724901548999,13.11376417,144.06,144.0,15.4262]
[1724901549182,65.12549,144.05,144.0,15.4262]
[1724901549381,0.12549,144.04,144.0,15.4262]
[1724901549579,0.12549,144.04,144.0,22.3702]
[1724901551582,0.12549,144.04,144.01,6.9439]
[1724901551782,72.06759,144.05,144.01,6.9439]
[1724901556286,72.06759,144.05,144.0,22.3705]
[1724901556914,6.9425,144.04,144.0,22.3705]
[1724901564896,65.12549,144.05,143.97,6.3237]
[1724901565123,6.9437,144.02,143.96,16.5823]
[1724901565805,6.9437,144.02,143.98,6.9453]
[1724901567193,6.943,144.03,143.98,6.9453]
[1724901567410,20.0,144.02,143.98,6.9453]
[1724901576505,20.0,144.02,143.99,6.9449]
[1724901584026,20.0,144.02,143.96,16.5823]
[1724901584329,26.9431,144.03,143.96,16.5823]
[1724901585227,26.9431,144.03,143.99,6.9448]
[1724901585723,45.12549,144.02,143.99,6.9448]
[1724901589838,45.12549,144.02,144.0,6.9442]
[1724901590206,45.12549,144.02,143.99,6.9448]
[1724901593623,20.0,144.03,143.97,12.98827417]
[1724901593935,20.0,144.05,143.97,12.98827417]
[1724901594136,26.9423,144.05,144.01,6.9435]
[1724901595221,20.0,144.05,144.02,6.9433]
[1724901595541,20.0,144.05,143.97,12.98827417]
[1724901595542,7.06699,144.06,144.01,6.9437]
[1724901595739,45.25098,144.05,144.01,6.9437]
[1724901600353,45.12549,144.05,144.02,6.9432]
[1724901600523,24.05357063,144.09,144.03,6.9428]
[1724901600724,72.19168,144.08,144.04,6.9424]
[1724901607547,72.19168,144.08,144.03,6.9428]
[1724901610321,6.9411,144.07,144.03,6.9428]
[1724901611249,7.06709,144.06,144.02,6.9432]
[1724901611434,6.9416,144.06,144.02,6.9432]
[1724901612551,12.98827417,144.07,144.0,16.1558]
[1724901612738,12.98827417,144.05,144.0,16.1558]
[1724901612938,52.19348,144.04,144.0,23.0999]
[1724901613754,45.25098,144.04,144.0,23.0999]
[1724901617659,52.19368,144.04,144.0,23.0999]
[1724901618853,52.19368,144.04,144.0,16.1558]
[1724901619058,6.9437,144.02,143.98,6.9453]
[1724901621059,45.0,144.01,143.98,6.9453]
[1724901624337,57.98827417,144.01,143.93,19.02377417]
[1724901624539,0.25098,144.0,143.93,19.02377417]
[1724901624843,20.25098,144.0,143.93,19.02377417]
[1724901625154,20.25098,144.0,143.96,6.9463]
[1724901625155,45.0,143.99,143.96,6.9463]
[1724901627575,57.98827417,143.99,143.92,15.7051]
[1724901627888,12.98827417,143.97,143.92,6.9481]
[1724901628057,65.25098,143.96,143.92,6.9481]
[1724901630755,72.19748,143.96,143.91,6.9486]
[1724901631545,72.19748,143.96,143.92,6.9481]
[1724901631764,20.0,143.96,143.93,6.9473]
[1724901631973,20.0,143.99,143.93,6.9473]
[1724901632269,20.12549,143.99,143.93,6.9473]
[1724901632465,27.07049,143.99,143.94,6.9472]
[1724901633045,0.12549,143.98,143.94,6.9472]
[1724901633267,45.12549,143.98,143.94,6.9472]
[1724901633468,20.12549,143.97,143.94,6.9472]
[1724901633766,20.12549,143.97,143.93,6.9476]
[1724901637562,20.12549,143.97,143.89,6.633]
[1724901637563,20.0,143.97,143.95,6.9468]
[1724901637765,45.12549,143.98,143.95,6.9468]
[1724901637972,0.12549,143.98,143.95,6.9468]
[1724901638149,20.12549,143.98,143.95,6.9468]
[1724901638965,0.12549,143.98,143.95,6.9468]
[1724901639771,45.12549,143.98,143.95,6.9468]
[1724901641549,45.12549,143.98,143.92,28.54037417]
[1724901641550,20.0,143.99,143.94,12.98827417]
[1724901641756,20.0,144.01,143.97,6.9458]
[1724901641956,45.0,144.0,143.97,6.9458]
[1724901642958,45.0,144.0,143.92,15.5521]
[1724901643153,45.0,144.0,143.92,28.54037417]
[1724901643154,0.25098,143.99,143.92,28.54037417]
[1724901644076,0.25098,143.99,143.92,15.5521]
[1724901644277,0.25098,143.99,143.92,28.54037417]
[1724901644774,0.25098,143.99,143.92,15.5521]
[1724901644965,0.25098,143.99,143.92,28.54037417]
[1724901651563,0.25098,143.99,143.95,6.9467]
[1724901652769,7.19588,143.99,143.95,6.9467]
[1724901652971,45.0,143.98,143.94,6.9471]
[1724901657673,0.25098,143.97,143.93,6.9476]
[1724901658370,27.19728,143.97,143.92,6.9481]
[1724901658695,51.9468,143.96,143.91,6.9486]
[1724901658894,0.25098,143.95,143.91,6.9486]
[1724901660068,0.12549,143.95,143.93,6.9478]
[1724901660576,20.0,143.97,143.94,6.9472]
[1724901660782,6.9452,143.99,143.94,6.9472]
[1724901660969,65.0,143.98,143.94,6.9472]
[1724901662689,65.0,143.98,143.95,6.9467]
[1724901662890,45.0,143.98,143.95,6.9467]
[1724901667606,51.9454,143.98,143.94,6.9471]
[1724901667784,51.9454,143.98,143.93,15.0949]
[1724901667785,0.25098,143.97,143.93,22.0426]
[1724901667977,20.25098,143.97,143.92,6.9481]
[1724901668179,45.0,143.96,143.92,6.9481]
[1724901668376,0.25098,143.95,143.92,6.9481]
[1724901669700,0.25098,143.95,143.89,29.56547417]
[1724901669701,20.0,143.97,143.91,12.98827417]
[1724901670201,20.0,143.97,143.93,6.9477]
[1724901674603,6.9438,144.02,143.97,6.9455]
[1724901674782,6.1857,144.05,143.99,6.9445]
[1724901675287,6.9428,144.04,143.99,6.9445]
[1724901675894,6.943,144.03,143.99,6.9445]
[1724901676087,45.25098,144.02,143.99,6.9445]
[1724901677095,6.1857,144.05,144.0,6.9444]
[1724901677096,6.9426,144.04,144.0,6.9444]
[1724901677298,20.0,144.03,143.99,6.9448]
[1724901678200,45.0,144.02,143.99,6.9448]
[1724901678502,45.12549,144.02,143.99,6.9448]
[1724901682604,27.06849,144.03,144.01,6.9439]
[1724901682605,20.12549,144.03,144.01,6.9439]
[1724901682804,20.0,144.04,144.01,6.9439]
[1724901683004,45.0,144.03,144.01,6.9439]
[1724901683190,20.0,144.04,144.01,6.9439]
[1724901683586,1.2090165,144.1,144.03,6.9428]
[1724901683793,13.2957,144.09,144.04,6.9423]
[1724901684103,6.9404,144.09,144.04,6.9423]
[1724901684495,6.9406,144.08,144.03,6.9429]
[1724901685009,20.0,144.07,144.03,6.9429]
[1724901685207,45.25098,144.06,144.03,6.9429]
[1724901685812,20.0,144.07,144.03,6.9429]
[1724901687006,45.25098,144.06,144.03,6.9429]
[1724901692791,65.5807,144.11,144.06,6.9412]
[1724901692792,6.9395,144.11,144.06,6.9412]
[1724901693604,6.9395,144.11,144.07,6.9409]
[1724901694198,45.12549,144.1,144.07,6.9409]
[1724901695016,0.12549,144.09,144.07,6.9409]
[1724901695800,0.12549,144.09,144.06,6.9414]
[1724901696902,0.12549,144.09,144.02,36.12647417]
[1724901698502,0.12549,144.09,144.05,6.9417]
[1724901701826,0.12549,144.09,144.06,6.9414]
[1724901706413,45.12549,144.1,144.07,6.9408]
[1724901712526,52.06529,144.1,144.06,6.9414]
[1724901712741,0.12549,144.09,144.06,6.9414]
[1724901717815,0.12549,144.09,144.06,12.98827417]
[1724901718121,0.12549,144.1,144.06,12.98827417]
[1724901718430,26.9382,144.13,144.07,15.6093]
[1724901719825,45.25098,144.12,144.09,6.9397]
[1724901720036,45.25098,144.12,144.1,6.9395]
[1724901720222,45.12549,144.12,144.1,6.9395]
[1724901720731,0.12549,144.12,144.1,6.9395]
[1724901723747,0.25098,144.12,144.09,6.94]
[1724901727020,0.25098,144.12,144.08,6.9404]
[1724901727937,0.25098,144.12,144.09,6.94]
[1724901728330,0.12549,144.12,144.1,6.9393]
[1724901728531,0.25098,144.12,144.1,6.9393]
[1724901728730,0.12549,144.12,144.1,6.9393]
[1724901739353,7.06409,144.12,144.08,6.9402]
[1724901739526,45.12549,144.11,144.08,6.9402]
[1724901739731,0.12549,144.1,144.08,6.9402]
[1724901740751,0.12549,144.1,144.03,21.7046]
[1724901740931,0.12549,144.1,144.05,12.98827417]
[1724901742243,0.12549,144.1,144.07,6.941]
[1724901742838,0.12549,144.1,144.07,19.92927417]
[1724901748852,45.0,144.11,144.09,6.94]
[1724901749061,6.938,144.14,144.09,6.94]
[1724901749232,45.12549,144.13,144.09,6.94]
[1724901749434,0.12549,144.12,144.09,6.94]
[1724901749828,0.12549,144.12,144.1,6.9395]
[1724901752449,23.07091059,144.15,144.09,12.98827417]
[1724901752655,13.3831,144.16,144.12,6.9386]
[1724901752828,20.0,144.15,144.12,6.9386]
[1724901753436,20.0,144.15,144.11,6.939]
[1724901753847,45.25098,144.14,144.11,6.939]
[1724901754149,45.11934895,144.14,144.11,6.939]
[1724901766162,45.11934895,144.14,144.07,15.9511]
[1724901766460,52.05704895,144.14,144.1,6.9396]
[1724901768565,45.11934895,144.14,144.12,6.9385]
[1724901769264,45.11934895,144.14,144.08,12.98827417]
[1724901772040,45.11934895,144.14,144.08,14.37618379]
[1724901772656,45.11934895,144.14,144.11,6.939]
[1724901780554,45.11934895,144.14,144.07,15.9511]
[1724901780878,45.11934895,144.14,144.09,6.9399]
[1724901780879,0.12549,144.13,144.09,6.9399]
[1724901781079,52.05734895,144.14,144.07,15.9511]
[1724901781269,52.05734895,144.14,144.1,6.9395]
[1724901782077,0.12549,144.13,144.1,6.9395]
[1724901783678,7.06369,144.13,144.07,15.9511]
[1724901783886,45.12549,144.12,144.07,15.9511]
[1724901784359,45.12549,144.12,144.08,6.9404]
[1724901785176,45.12549,144.12,144.07,6.9409]
[1724901785381,6.9396,144.1,144.02,16.6384]
[1724901785671,45.25098,144.09,144.05,6.9419]
[1724901786575,45.25098,144.09,144.04,6.9424]
[1724901787456,6.9406,144.08,144.04,6.9424]
[1724901787656,45.25098,144.07,144.04,6.9424]
[1724901788067,6.9401,144.09,144.01,12.98827417]
[1724901788269,45.0,144.08,144.05,6.9419]
[1724901790213,45.0,144.08,144.03,12.98827417]
[1724901790214,45.0,144.08,144.06,6.9414]
[1724901790424,6.9397,144.1,144.06,6.9414]
[1724901790425,45.0,144.09,144.06,6.9414]
[1724901795221,0.12549,144.08,144.05,6.9418]
[1724901795424,0.25098,144.08,144.05,6.9418]
[1724901799509,0.25098,144.08,144.02,28.58497417]
[1724901799510,0.12549,144.08,144.06,6.9414]
[1724901799707,45.0,144.09,144.06,6.9414]
[1724901799906,45.0,144.09,144.07,6.9406]
[1724901800214,45.0,144.1,144.07,6.9406]
[1724901800415,13.06,144.11,144.07,6.9406]
[1724901800618,6.9401,144.09,144.05,6.9415]
[1724901800816,7.06519,144.1,144.05,6.9415]
[1724901801018,7.06519,144.1,144.06,6.9413]
[1724901801522,0.12549,144.1,144.06,6.9413]
[1724901801831,45.12549,144.1,144.06,6.9413]
[1724901802003,45.25098,144.1,144.06,6.9413]
[1724901802530,45.25098,144.1,144.07,6.9407]
[1724901805530,0.25098,144.1,144.07,6.9407]
[1724901808033,0.25098,144.1,144.08,6.9404]
[1724901808409,6.4531,144.14,144.07,12.98827417]
[1724901808624,20.0,144.13,144.1,6.9395]
[1724901809724,45.25098,144.12,144.09,6.9399]
[1724901810521,52.18958,144.12,144.08,6.9405]
[1724901813146,45.25098,144.12,144.09,6.94]
[1724901814648,45.25098,144.12,144.07,12.98827417]
[1724901814649,0.25098,144.12,144.1,6.9395]
[1724901814855,6.9378,144.14,144.1,6.9395]
[1724901815149,0.12549,144.13,144.1,6.9395]
[1724901816444,0.25098,144.13,144.1,6.9395]
[1724901816739,45.25098,144.13,144.1,6.9395]
[1724901816931,45.25098,144.13,144.11,6.939]
[1724901817315,45.25098,144.13,144.1,6.9394]
[1724901817520,0.25098,144.13,144.1,6.9394]
[1724901818521,0.25098,144.13,144.09,6.94]
[1724901820237,7.18918,144.13,144.09,6.94]
[1724901820452,45.0,144.12,144.09,6.94]
[1724901820628,0.25098,144.11,144.09,6.94]
[1724901824948,50.0,144.16,144.11,6.9391]
[1724901825253,20.0,144.15,144.11,6.9391]
[1724901825836,20.0,144.16,144.11,6.9391]
[1724901826263,6.9372,144.15,144.11,6.9391]
[1724901826756,45.12549,144.14,144.11,6.9391]
[1724901826957,0.12549,144.13,144.11,6.9391]
[1724901832363,11.05933114,144.17,144.13,6.9381]
[1724901832573,61.05933114,144.19,144.1,29.41317417]
[1724901832866,6.9361,144.18,144.13,6.938]
[1724901833892,45.25098,144.17,144.13,6.938]
[1724901837285,45.25098,144.17,144.14,6.9374]
[1724901837628,0.25098,144.17,144.14,6.9374]
[1724901837886,0.25098,144.17,144.15,6.9371]
[1724901838188,0.25098,144.17,144.16,6.9367]
[1724901839082,0.25098,144.17,144.15,6.937]
[1724901840083,0.25098,144.17,144.14,6.9375]
[1724901847592,0.25098,144.17,144.13,6.938]
[1724901849496,20.17555417,144.17,144.13,6.938]
[1724901849712,45.0,144.16,144.13,6.938]
[1724901849906,0.25098,144.15,144.13,6.938]
[1724901862301,13.23925417,144.15,144.1,6.9392]
[1724901862808,45.0,144.14,144.1,6.9392]
[1724901863010,0.12549,144.13,144.1,6.9392]
[1724901863205,0.25098,144.13,144.1,6.9392]
[1724901870347,0.25098,144.13,144.11,6.9391]
[1724901870561,45.0,144.14,144.11,6.9391]
[1724901871880,45.0,144.14,144.12,6.9385]
[1724901872177,45.12549,144.15,144.12,6.9385]
[1724901872356,0.12549,144.14,144.12,6.9385]
[1724901872562,0.25098,144.15,144.12,6.9385]
[1724901874661,0.12549,144.15,144.14,6.9376]
[1724901874985,45.0,144.16,144.14,6.9376]
[1724901875184,45.12549,144.17,144.14,6.9376]
[1724901875366,0.12549,144.16,144.14,6.9376]
[1724901878375,0.12549,144.16,144.15,6.9372]
[1724901879184,0.12549,144.16,144.14,6.9375]
[1724901880262,45.12549,144.17,144.14,6.9375]
[1724901882768,45.0,144.16,144.14,6.9375]
[1724901882967,0.12549,144.17,144.14,6.9375]
[1724901883164,0.25098,144.17,144.14,6.9375]
[1724901883362,0.25098,144.17,144.15,6.9371]
[1724901883363,0.12549,144.17,144.15,6.9371]
[1724901889988,44.62549,144.18,144.15,6.9371]
[1724901893491,0.12549,144.17,144.14,6.9375]
[1724901893697,0.25098,144.17,144.14,6.9375]
[1724901901996,12.98827417,144.16,144.13,6.938]
[1724901902200,45.25098,144.15,144.13,6.938]
[1724901904097,45.25098,144.15,144.12,6.9385]
[1724901908299,45.25098,144.15,144.1,23.4199]
[1724901909284,52.18828,144.15,144.11,6.939]
[1724901913779,45.25098,144.15,144.1,16.4806]
[1724901913983,45.25098,144.15,144.12,6.9384]
[1724901919199,52.18818,144.15,144.11,6.939]
[1724901920894,45.25098,144.15,144.11,6.939]
[1724901922613,45.25098,144.15,144.12,6.9385]
[1724901925411,52.18818,144.15,144.11,6.939]
[1724901930521,45.25098,144.15,144.11,6.939]
[1724901931114,45.25098,144.15,144.1,16.4806]
[1724901932221,45.25098,144.15,144.14,6.9376]
[1724901932810,45.19098,144.15,144.14,6.9376]
[1724901933008,45.12549,144.15,144.14,6.9376]
[1724901934123,45.12549,144.15,144.1,16.4806]